[Event "NY Presidents Day IM-B 2024"]
[Site "New York"]
[Date "2024.02.16"]
[Round "1.5"]
[White "Bortnyk, Mykola"]
[Black "Tanenbaum, Zachary"]
[Result "1-0"]
[ECO "A06"]
[WhiteElo "2421"]
[BlackElo "2272"]
[Annotator "RC"]
[PlyCount "165"]
[EventDate "2024.02.14"]
[EventType "schev"]
[EventCountry "USA"]
[SourceTitle "playchess.com"]
[Source "ChessBase"]
[SourceQuality "1"]
[TimeControl "5400+30"]

1. Nf3 {[%emt 0:00:20]} d5 {[%emt 0:18:13]} 2. b3 {[%emt 0:00:26]} Bg4 {[%emt 0:00:12]} 3. Bb2 {[%emt 0:00:41]} Nd7 {[%emt 0:00:10]} 4. e3 {[%emt 0:00:20]} Ngf6 {[%emt 0:00:27]} 5. Be2 {[%emt 0:01:12]} e6 {[%emt 0:00:20]} 6. d3 {[%emt 0:00:16]} Bd6 {[%emt 0:09:09]} 7. Nbd2 {[%emt 0:01:36]} c6 {[%emt 0:04:42]} 8. h3 {[%emt 0:02:51]} Bxf3 {[%emt 0:00:18]} 9. Nxf3 {[%emt 0:01:02]} Qe7 {[%emt 0:04:20]} 10. a3 {[%emt 0:01:32]} O-O {[%emt 0:03:18]} 11. c4 {[%emt 0:12:03]} a5 {[%emt 0:13:02]} 12. g4 {[%emt 1:14:11]} e5 {[%emt 0:02:49]} 13. g5 {[%emt 0:00:00]} Ne8 {[%emt 0:00:16]} 14. Qc2 {[%emt 0:00:00]} Nc7 {[%emt 0:03:21]} 15. Rg1 {[%emt 0:00:00]} f5 {[%emt 0:04:14]} 16. gxf6 {[%emt 0:00:00]} Rxf6 {[%emt 0:01:32]} 17. d4 {[%emt 0:00:00]} e4 {[%emt 0:04:04]} 18. c5 {[%emt 0:00:00]} Bf4 {[%emt 0:07:20]} 19. Nd2 {[%emt 0:00:00]} Bh6 {[%emt 0:02:32]} 20. Nf1 {[%emt 0:00:00]} Raf8 {[%emt 0:00:23]} 21. Rg2 {[%emt 0:00:00]} Ne6 {[%emt 0:03:17]} 22. Bg4 {[%emt 0:00:00]} Qf7 {[%emt 0:03:10]} 23. O-O-O {[%emt 0:00:00]} Ng5 {[%emt 0:05:38]} 24. Bc3 {[%emt 0:00:00]} Ra8 {[%emt 0:01:31]} 25. Ng3 {[%emt 0:00:00]} Nf3 {[%emt 0:01:16]} 26. Nh5 {[%emt 0:00:00]} Rg6 {[%emt 0:00:40]} 27. Kb1 {[%emt 0:00:00]} Nf6 {[%emt 0:05:55]} 28. Bxf3 {[%emt 0:00:00]} exf3 {[%emt 0:00:18]} 29. Rxg6 {[%emt 0:00:00]} hxg6 {[%emt 0:01:07]} 30. Nxf6+ {[%emt 0:00:00]} Qxf6 {[%emt 0:00:20]} 31. Rg1 {[%emt 0:00:00]} Qf7 {[%emt 0:01:33]} 32. Bd2 {[%emt 0:00:00]} a4 {[%emt 0:00:17]} 33. bxa4 {[%emt 0:00:00]} Re8 {[%emt 0:00:40]} 34. a5 {[%emt 0:00:00]} Re4 {[%emt 0:00:10]} 35. Ka2 {[%emt 0:00:00]} Kh7 {[%emt 0:00:52]} 36. Rb1 {[%emt 0:00:00]} Qd7 {[%emt 0:00:14]} 37. Qd1 {[%emt 0:00:00]} Qf7 {[%emt 0:00:46]} 38. Qb3 {[%emt 0:00:00]} Re7 {[%emt 0:00:09]} 39. Qd3 {[%emt 0:00:00]} Qe6 {[%emt 0:00:52]} 40. Rg1 {[%emt 0:00:00]} Rf7 {[%emt 0:00:28]} 41. h4 {[%emt 0:00:00]} Rf5 {[%emt 0:00:18]} 42. Qb1 {[%emt 0:00:00]} Qf7 {[%emt 0:00:23]} 43. Rg4 {[%emt 0:00:00]} Rh5 {[%emt 0:00:35]} 44. a4 {[%emt 0:00:00]} Qe6 {[%emt 0:00:37]} 45. Rg3 {[%emt 0:00:00]} Qf7 {[%emt 0:00:09]} 46. Qd1 {[%emt 0:00:00]} Rf5 {[%emt 0:00:10]} 47. Ka3 {[%emt 0:00:00]} Qf6 {[%emt 0:00:48]} 48. Rh3 {[%emt 0:00:00]} Kg8 {[%emt 0:00:48]} 49. Qb3 {[%emt 0:00:00]} Qe7 {[%emt 0:00:35]} 50. Rh1 {[%emt 0:00:00]} Qe4 {[%emt 0:00:37]} 51. Qb1 {[%emt 0:00:00]} Qe7 {[%emt 0:00:31]} 52. Rg1 {[%emt 0:00:00]} Qf7 {[%emt 0:00:28]} 53. Qb6 {[%emt 0:00:00]} Rh5 {[%emt 0:00:29]} 54. Rb1 {[%emt 0:00:00]} Qf5 {[%emt 0:00:19]} 55. Rb2 {[%emt 0:00:07]} Rxh4 {[%emt 0:00:38]} 56. Qd8+ {[%emt 0:01:29]} Kh7 {[%emt 0:00:02]} 57. Qxh4 {[%emt 0:00:06]} Qd3+ {[%emt 0:00:02]} 58. Ka2 {[%emt 0:00:07]} Qc4+ {[%emt 0:00:06]} 59. Kb1 {[%emt 0:02:03]} Qf1+ {[%emt 0:01:18]} 60. Bc1 {[%emt 0:00:05]} Qd3+ {[%emt 0:01:09]} 61. Rc2 {[%emt 0:00:02]} g5 {[%emt 0:00:31]} 62. Qh3 {[%emt 0:00:26]} Qe4 {[%emt 0:00:18]} 63. Kb2 {[%emt 0:00:31]} g4 {[%emt 0:00:24]} 64. Qf1 {[%emt 0:00:02]} Bg5 {[%emt 0:00:39]} 65. Rd2 {[%emt 0:00:42]} Kg6 {[%emt 0:00:39]} 66. Qd3 {[%emt 0:00:25]} Qxd3 {[%emt 0:00:28]} 67. Rxd3 {[%emt 0:00:01]} Bh4 {[%emt 0:00:20]} 68. Rd2 {[%emt 0:01:17]} Kf5 {[%emt 0:00:13]} 69. Kc2 {[%emt 0:00:05]} Ke4 {[%emt 0:00:13]} 70. Kd1 {[%emt 0:00:04]} Bxf2 {[%emt 0:01:13]} 71. Rxf2 {[%emt 0:00:36]} g3 {[%emt 0:00:04]} 72. Ke1 {[%emt 0:02:36]} gxf2+ {[%emt 0:00:02]} 73. Kxf2 {[%emt 0:00:04]} g5 {[%emt 0:00:08]} 74. Bd2 {[%emt 0:00:49]} g4 {[%emt 0:00:08]} 75. Be1 {[%emt 0:02:54]} g3+ {[%emt 0:02:08]} 76. Kxg3 {[%emt 0:00:06]} Kxe3 {[%emt 0:00:02]} 77. Bf2+ {[%emt 0:00:06]} Ke2 {[%emt 0:00:05]} 78. Bg1 {[%emt 0:00:05]} Kf1 {[%emt 0:00:09]} 79. Be3 {[%emt 0:00:03]} Ke2 {[%emt 0:00:10]} 80. Bf2 {[%emt 0:00:04]} Kf1 {[%emt 0:00:09]} 81. a6 {[%emt 0:00:16]} bxa6 {[%emt 0:00:05]} 82. Kxf3 {[%emt 0:00:03]} a5 {[%emt 0:00:06]} 83. Bh4 {[%emt 0:00:02]} 1-0

[Event "NY Presidents Day IM-B 2024"]
[Site "New York"]
[Date "2024.02.16"]
[Round "1.6"]
[White "Pang, Qi"]
[Black "Lima, Darcy"]
[Result "1/2-1/2"]
[ECO "D74"]
[WhiteElo "2148"]
[BlackElo "2370"]
[Annotator "TA"]
[PlyCount "72"]
[EventDate "2024.02.14"]
[EventType "schev"]
[EventCountry "USA"]
[SourceTitle "playchess.com"]
[Source "ChessBase"]
[SourceQuality "1"]
[TimeControl "5400+30"]

{[%evp 14,72,8,8,28,23,47,33,60,54,53,4,28,0,18,9,53,52,69,45,51,37,33,8,32,33,22,23,35,41,27,37,29,30,121,22,149,84,129,43,43,43,128,121,117,75,75,68,93,79,118,114,29985,12,28,35,30,24,32,26,43]} 1. Nf3 {[%emt 0:01:28]} Nf6 {[%emt 0:00:34]} 2. c4 {[%emt 0:00:43]} g6 {[%emt 0:00:20]} 3. g3 {[%emt 0:02:43]} Bg7 {[%emt 0:00:09]} 4. Bg2 {[%emt 0:00:04]} O-O {[%emt 0:00:14]} 5. Nc3 {[%emt 0:00:15]} d5 {[%emt 0:00:29]} 6. cxd5 {[%emt 0:02:46]} Nxd5 {[%emt 0:00:08]} 7. O-O {[%emt 0:00:06]} Nc6 {[%emt 0:02:20]} 8. d4 {[%emt 0:08:57]} Bf5 {[%emt 0:01:11]} 9. Nd2 {[%emt 0:08:38]} Nxc3 {[%emt 0:09:18]} 10. bxc3 {[%emt 0:00:03]} Qd7 {[%emt 0:04:13] White is slightly better.} 11. Nb3 {[%emt 0:08:14]} b6 {[%emt 0:00:46]} 12. Bf4 {[%emt 0:00:05]} (12. e4 $14 {was preferrable.} Bh3 13. Bxh3 Qxh3 14. e5) 12... Rac8 {[%emt 0:15:39]} 13. d5 {[%emt 0:12:56]} Ne5 {[%emt 0:01:01]} 14. Nd4 {[%emt 0:00:38]} Rfe8 {[%emt 0:06:37]} 15. Qb3 {[%emt 0:02:07]} a5 {[%emt 0:01:29]} 16. Rfd1 {[%emt 0:07:10]} Bh3 {[%emt 0:02:44]} 17. Bxe5 {[%emt 0:03:20]} Bxe5 {[%emt 0:00:24]} 18. Nc6 {[%emt 0:00:43]} Bg7 {[%emt 0:01:01]} 19. Qc4 {[%emt 0:10:07]} Bxg2 {[%emt 0:10:19]} 20. Kxg2 {[%emt 0:00:46]} e6 {[%emt 0:02:37]} 21. e4 {[%emt 0:01:06]} exd5 {[%emt 0:00:06]} 22. Rxd5 {[%emt 0:00:50]} Qe6 {[%emt 0:00:10]} 23. Re1 {[%emt 0:00:21]} h5 {[%emt 0:01:08]} (23... Bf8 $11 {keeps the balance.}) 24. h4 {[%emt 0:01:26]} (24. e5 $16) 24... Kh7 {[%emt 0:04:26]} (24... Bf8 $11) 25. Re3 {[%emt 0:01:44] White has more active pieces.} (25. e5 $142) 25... Rf8 {[%emt 0:05:49]} 26. Nd4 {[%emt 0:03:54]} (26. e5 $16) 26... Bxd4 $14 {[%emt 0:03:55]} 27. Qxd4 {[%emt 0:00:04]} (27. Rxd4 Qxc4 28. Rxc4 c5 $11) (27. cxd4 $2 c6 $19) 27... c6 {[%emt 0:00:24] [#]} ({Black should try} 27... Rce8 $14) 28. Rd6 $1 $16 {[%emt 0:01:56]} Qxa2 {[%emt 0:00:08]} 29. Qxb6 {[%emt 0:00:17][%cal Oe4e5]} a4 {[%emt 0:00:08]} 30. Qc5 {[%emt 0:06:11][%cal Oe4e5]} Qb2 {[%emt 0:10:35]} 31. Rf3 {[%emt 0:06:23]} ({Don't play} 31. Rxc6 $6 Rxc6 32. Qxf8 Rf6 $11 (32... Rxc3 $2 33. Qxf7+ Kh6 34. Qf6 $18)) 31... Qb5 {[%emt 0:04:40]} 32. Qa7 {[%emt 0:00:31]} Kg8 {[%emt 0:00:40][%mdl 8192] [#]} (32... Qc4 $16) 33. Rdf6 $2 {[%emt 0:03:40]} (33. Rff6 $1 {mates} Qe5 34. Rxg6+ (34. Rxc6 $2 {perishes.} Rxc6 35. Rf4 Rc4 $19) (34. Qxa4 Rce8 $16) 34... Kh8 35. Rh6+ Kg8 36. Rdg6+ (36. Qxa4 Rfe8 $18) 36... Qg7 37. Rxg7+ Kxg7 38. Rxh5) 33... Qc4 {[%emt 0:04:42]} 34. e5 {[%emt 0:00:36] Black is weak on the dark squares} Ra8 $1 {[%emt 0:00:03]} 35. Qc7 {[%emt 0:00:38] aiming for e6.} Rac8 {[%emt 0:00:25]} 36. Qd6 {[%emt 0:01:25] e6 would now be deadly.} Qd5 {[%emt 0:01:42] Weighted Error Value: White=0.39/Black=0.45.  Loses game:     	---       	Black=1      Missed win:     	White=1     	---        Mistake:       	White=4     	Black=3      Inaccurate:     	White=2     	Black=4      OK:         	White=9     	Black=9      Strong:       	White=1     	Black=1} 1/2-1/2

[Event "NY Presidents Day IM-B 2024"]
[Site "New York"]
[Date "2024.02.16"]
[Round "2.1"]
[White "Lee, Megan"]
[Black "Jimenez Fraga, Pedro Alejandro"]
[Result "1-0"]
[ECO "D84"]
[WhiteElo "2267"]
[BlackElo "2447"]
[Annotator "TA"]
[PlyCount "95"]
[EventDate "2024.02.14"]
[EventType "schev"]
[EventCountry "USA"]
[SourceTitle "playchess.com"]
[Source "ChessBase"]
[SourceQuality "1"]
[TimeControl "5400+30"]

{[%evp 21,95,94,93,79,83,80,72,107,112,8,77,34,60,57,41,4,10,0,0,0,0,-37,-35,-106,-115,-168,-84,-98,-76,-68,-33,-31,-26,-27,0,0,-21,-27,-32,-32,-1,-4,-12,-51,-27,-59,-21,-14,-12,-159,0,0,0,0,0,0,0,0,0,-2,0,0,0,-8,-8,-7,8,11,31,39,35,31,36,29,29,29]} 1. d4 {[%emt 0:00:02]} Nf6 {[%emt 0:00:04]} 2. c4 {[%emt 0:00:10]} g6 {[%emt 0:00:24]} 3. Nc3 {[%emt 0:00:26]} d5 {[%emt 0:00:05]} 4. Bf4 {[%emt 0:04:28]} Bg7 {[%emt 0:00:26]} 5. e3 {[%emt 0:09:55]} O-O {[%emt 0:02:23]} 6. cxd5 {[%emt 0:06:01]} Nxd5 {[%emt 0:00:06]} 7. Nxd5 {[%emt 0:00:26]} Qxd5 {[%emt 0:00:03]} 8. Bxc7 {[%emt 0:00:24]} Nc6 {[%emt 0:07:05]} 9. Ne2 {[%emt 0:03:36]} Bg4 {[%emt 0:14:11]} 10. f3 {[%emt 0:07:53]} Bxf3 {[%emt 0:18:13]} 11. gxf3 {[%emt 0:01:33]} Qxf3 {[%emt 0:00:02]} 12. Rg1 {[%emt 0:01:38]} Qxe3 {[%emt 0:53:28][%cal Rg7d4]} 13. Bf4 {[%emt 0:03:25]} Qe4 {[%emt 0:00:00][%cal Rc6d4]} 14. Bg2 {[%emt 0:04:22] White is better.} Qf5 {[%emt 0:00:00][%cal Oc6d4]} 15. Qd2 {[%emt 0:08:46]} (15. Bxc6 $1 $16 bxc6 16. Qd2) 15... Rac8 {[%emt 0:00:00]} (15... e5 $1 $11 {keeps the balance.} 16. Bxc6 exf4 17. Bxb7 Rad8) 16. Bf3 {[%emt 0:10:36] And now Bg4 would win.} Qb5 {[%emt 0:00:00]} 17. Bxc6 {[%emt 0:14:33]} Rxc6 {[%emt 0:00:00]} 18. Be3 {[%emt 0:05:52]} Rd8 {[%emt 0:00:00]} 19. Rd1 {[%emt 0:03:36]} Qh5 {[%emt 0:00:00]} 20. Nf4 {[%emt 0:09:45]} Qf5 {[%emt 0:00:00]} 21. Rg2 {[%emt 0:02:03]} e5 {[%emt 0:00:00]} 22. Ne2 {[%emt 0:00:40] [#]} (22. Nd3 $1 $15) 22... exd4 $1 $17 {[%emt 0:00:00] White must now prevent ...Re6.} 23. Ng3 {[%emt 0:00:52]} (23. Qd3 $17 {was called for.} Qf3 (23... dxe3 $2 24. Qxd8+ Bf8 25. Qg5 $18) 24. Rg3 Qh1+ 25. Rg1 Qxh2 26. Bf4 Qh4+ 27. Kd2) 23... Qe6 {[%emt 0:00:00]} ({Black should try} 23... Qg4 $19 24. Kf1 Bf6) 24. Kf1 {[%emt 0:00:26]} Qxa2 {[%emt 0:00:00]} (24... Qxe3 $2 {too greedy.} 25. Qxe3 dxe3 26. Rxd8+ Bf8 27. Ke2 $18) 25. Bh6 {[%emt 0:00:13]} Bh8 {[%emt 0:00:00]} 26. Kg1 {[%emt 0:01:01]} Qd5 {[%emt 0:00:00] Against Nf5} (26... d3 {is interesting.} 27. Qf4 Qd5 28. Nf5 Re6) 27. Qd3 {[%emt 0:00:25]} Re6 {[%emt 0:00:00]} 28. Rf1 {[%emt 0:00:26]} Rde8 {[%emt 0:00:45]} 29. Bd2 {[%emt 0:00:21] Prevents Re1.} (29. Nf5 {is more complex.} Re1 30. Bd2 Rxf1+ 31. Qxf1 Bg7 32. Nxg7 Kxg7 33. Qf4) 29... Bg7 {[%emt 0:00:29]} 30. Rgf2 {[%emt 0:00:26]} f5 {[%emt 0:00:39]} 31. Ra1 {[%emt 0:00:10]} a6 {[%emt 0:00:31]} 32. Ra5 {[%emt 0:00:31]} b5 {[%emt 0:01:02]} 33. b3 {[%emt 0:01:00]} h5 {[%emt 0:03:42]} 34. Ne2 {[%emt 0:00:45]} Qc6 {[%emt 0:01:48]} 35. Rg2 {[%emt 0:00:34] [#]} (35. Ra2 $1 $11) 35... Kh7 $2 {[%emt 0:01:07]} (35... h4 $1 $17 {[%cal Rh4h3] Strongly threatening ...h3!} 36. h3 Qd6) 36. Ra1 $1 $11 {[%emt 0:00:21][%cal Oe2f4]} Qe4 {[%emt 0:00:40]} 37. Nf4 {[%emt 0:00:25] Hoping for Qg3.} Bh6 {[%emt 0:01:01]} 38. Qxe4 {[%emt 0:00:40]} Rxe4 {[%emt 0:00:01]} 39. Nd5 {[%emt 0:00:16]} R8e6 {[%emt 0:00:19] Dodges Nf6+} 40. Nc7 {[%emt 0:00:28][%csl LRa6,LRe6]} Re7 {[%emt 0:01:21]} 41. Nd5 {[%emt 0:00:25]} R7e6 {[%emt 0:00:18] Wards off Nf6+} 42. Nc7 {[%emt 0:00:01][%csl LRa6,LRe6]} Rc6 {[%emt 0:00:31]} 43. Nxa6 {[%emt 0:00:14][%cal Bc7a6,Ba6b4,Bb4d5][%mdl 32]} Rg4 {[%emt 0:00:24]} 44. Rxg4 {[%emt 0:00:26]} hxg4 {[%emt 0:00:02]} 45. Nb4 {[%emt 0:00:11]} Rc7 {[%emt 0:00:47] Inhibits Ra7.} 46. Nd5 {[%emt 0:00:05]} Rf7 {[%emt 0:00:59]} 47. Bxh6 {[%emt 0:00:23]} Kxh6 {[%emt 0:00:02]} 48. Rd1 {[%emt 0:00:00][%mdl 32768] Weighted Error Value: White=0.18 (very precise) /Black=0.19 (very precise) .  Mistake:       	White=4     	Black=3      Inaccurate:     	White=5     	Black=4      OK:         	White=16    	Black=15     Best:        	White=1     	---        Strong:       	White=1     	Black=1     . Loss on time!?} 1-0

[Event "NY Presidents Day IM-B 2024"]
[Site "New York"]
[Date "2024.02.16"]
[Round "2.2"]
[White "Bortnyk, Mykola"]
[Black "Rajesh, C.S."]
[Result "1-0"]
[ECO "B84"]
[WhiteElo "2421"]
[BlackElo "2218"]
[Annotator "TA"]
[PlyCount "57"]
[EventDate "2024.02.14"]
[EventType "schev"]
[EventCountry "USA"]
[SourceTitle "playchess.com"]
[Source "ChessBase"]
[SourceQuality "1"]
[TimeControl "5400+30"]

{[%evp 17,57,31,31,-2,47,52,32,33,82,77,77,74,78,49,139,70,117,105,474,356,444,458,516,511,545,528,541,533,496,404,397,396,391,388,586,600,558,551,556,556,548,548]} 1. e4 {[%emt 0:04:05]} c5 {[%emt 0:00:06]} 2. Nf3 {[%emt 0:00:15]} e6 {[%emt 0:00:13]} 3. d4 {[%emt 0:00:20]} cxd4 {[%emt 0:00:07]} 4. Nxd4 {[%emt 0:00:06]} Nc6 {[%emt 0:00:21]} 5. Nc3 {[%emt 0:00:27]} Qc7 {[%emt 0:00:08]} 6. Be2 {[%emt 0:02:11]} a6 {[%emt 0:00:11]} 7. f4 {[%emt 0:01:21]} d6 {[%emt 0:08:01]} 8. Be3 {[%emt 0:02:13]} Nf6 {[%emt 0:00:39]} 9. Bf3 {[%emt 0:00:53]} Be7 {[%emt 0:01:55]} 10. h4 {[%emt 0:07:33][%cal Bh2h4,Bh4h5,Bh5h6][%mdl 32]} Nxd4 {[%emt 0:05:09]} (10... e5 $11 11. Nde2 O-O) 11. Qxd4 $14 {[%emt 0:01:05]} e5 {[%emt 0:00:38]} 12. Qd2 {[%emt 0:00:42] White is slightly better.} exf4 {[%emt 0:07:43]} (12... Bd7 $14) 13. Bxf4 $16 {[%emt 0:00:45]} Be6 {[%emt 0:01:21]} 14. O-O-O {[%emt 0:02:06]} Rd8 {[%emt 0:02:24]} 15. h5 {[%emt 0:05:23]} Qa5 {[%emt 0:13:18]} (15... h6 $14) 16. Kb1 {[%emt 0:04:55]} (16. h6 $16) 16... Ng4 {[%emt 0:19:47]} ({Black should play} 16... h6 $14) 17. h6 $36 {[%emt 0:10:53][%mdl 2048] [#] Bxg4 is the strong threat. White is really pushing.} g6 $2 {[%emt 0:10:21][%mdl 8192]} (17... Bf6 $16 {is a better chance.}) 18. Bxg4 $18 {[%emt 0:01:11]} Bxg4 {[%emt 0:00:02]} 19. Qd4 {[%emt 0:00:12]} f6 {[%emt 0:03:13]} 20. b4 {[%emt 0:02:20]} Qc7 {[%emt 0:03:35]} 21. Nd5 $1 {[%emt 0:00:14][%csl LRc7,LRf6]} Qd7 {[%emt 0:00:24] Black is weak on the dark squares} 22. Bg5 {[%emt 0:01:11]} (22. Nxf6+ Bxf6 23. Qxf6 Rf8 $17) 22... Rf8 {[%emt 0:07:43][%cal Og4d1]} 23. Bxf6 {[%emt 0:01:32]} (23. Nxf6+ Bxf6 24. Bxf6 Bxd1 25. Bxd8 (25. Rxd1 Rc8 $11) 25... Bxc2+ 26. Kxc2 Kxd8 $11) 23... Bxf6 {[%emt 0:00:53]} 24. Nxf6+ {[%emt 0:00:09]} Rxf6 {[%emt 0:00:03]} 25. Qxf6 {[%emt 0:00:07] [#] Strongly threatening Qh8+.} Bxd1 {[%emt 0:00:03]} (25... Qe7 $142 26. Qxe7+ Kxe7) 26. Qh8+ {[%emt 0:00:45] White is clearly winning.} Ke7 {[%emt 0:00:08]} 27. Qxh7+ {[%emt 0:00:05]} Kf6 {[%emt 0:00:14]} 28. Qxd7 {[%emt 0:00:13]} Rxd7 {[%emt 0:00:07]} 29. h7 {[%emt 0:00:04] White took control after the opening.   Weighted Error Value: White=0.17 (very precise) /Black=0.69.  Loses game:     	---       	Black=1      Mistake:       	White=1     	Black=5      Inaccurate:     	White=1     	---        OK:         	White=5     	Black=6      Best:        	White=6     	Black=1} 1-0

[Event "NY Presidents Day IM-B 2024"]
[Site "New York"]
[Date "2024.02.16"]
[Round "2.3"]
[White "Sun, Ryan"]
[Black "Lima, Darcy"]
[Result "1-0"]
[ECO "A62"]
[WhiteElo "2217"]
[BlackElo "2370"]
[Annotator "TA"]
[PlyCount "88"]
[EventDate "2024.02.14"]
[EventType "schev"]
[EventCountry "USA"]
[SourceTitle "playchess.com"]
[Source "ChessBase"]
[SourceQuality "1"]
[TimeControl "5400+30"]

{[%evp 21,88,18,37,30,41,43,46,23,31,21,42,30,39,35,44,25,35,0,0,-42,-47,-129,-32,-31,10,12,0,0,7,15,12,5,8,8,6,8,14,8,113,118,498,493,520,479,531,531,503,530,505,498,473,343,426,386,756,511,1086,1073,1737,1619,1683,1596,2666,1970,2494,2370,5724,5700,1902]} 1. d4 {[%emt 0:00:02]} Nf6 {[%emt 0:00:17]} 2. c4 {[%emt 0:00:13]} g6 {[%emt 0:00:32]} 3. g3 {[%emt 0:00:08]} Bg7 {[%emt 0:02:08]} 4. Bg2 {[%emt 0:00:06]} O-O {[%emt 0:00:36]} 5. Nc3 {[%emt 0:00:06]} c5 {[%emt 0:00:19]} 6. d5 {[%emt 0:00:43]} d6 {[%emt 0:00:23]} 7. Nf3 {[%emt 0:00:07]} e6 {[%emt 0:00:10]} 8. O-O {[%emt 0:00:05]} exd5 {[%emt 0:01:15]} 9. cxd5 {[%emt 0:00:08]} a6 {[%emt 0:00:33]} 10. a4 {[%emt 0:00:05]} Re8 {[%emt 0:01:57]} 11. Bf4 {[%emt 0:00:13]} h6 {[%emt 0:03:31]} 12. Re1 {[%emt 0:09:09]} g5 {[%emt 0:02:22]} 13. Bc1 {[%emt 0:00:21]} Nbd7 {[%emt 0:01:15][%cal Bb8d7,Bd7b6,Bb6c4,Bc4e5,Be5f3][%mdl 32]} 14. Qc2 {[%emt 0:06:21] White is slightly better.} Rb8 {[%emt 0:01:12]} 15. a5 {[%emt 0:05:37]} b5 {[%emt 0:00:24]} 16. axb6 {[%emt 0:00:28]} Nxb6 {[%emt 0:00:14]} 17. h4 {[%emt 0:02:01]} g4 {[%emt 0:01:28]} 18. Nh2 {[%emt 0:00:30]} Nc4 {[%emt 0:06:23]} 19. b3 {[%emt 0:08:20]} Ne5 {[%emt 0:02:30]} 20. Ba3 {[%emt 0:01:06]} Nh5 {[%emt 0:06:07]} 21. Ra2 {[%emt 0:08:14] [#]} (21. e4 $15) 21... f5 {[%emt 0:23:42]} (21... Qb6 $1 $17 {[%cal Oh5g3] And now ...Nxg3! would win.} 22. Nf1 Nf3+ (22... Qxb3 23. Qxb3 Rxb3 24. Ne4 $17) 23. Bxf3 gxf3) 22. e3 $15 {[%emt 0:08:58]} f4 {[%emt 0:09:03]} 23. exf4 {[%emt 0:02:12]} Nf3+ {[%emt 0:00:07]} 24. Nxf3 {[%emt 0:00:08]} (24. Bxf3 $2 {too greedy.} Rxe1+ 25. Nf1 gxf3 $19) 24... gxf3 {[%emt 0:00:03]} 25. Rxe8+ {[%emt 0:00:11]} Qxe8 {[%emt 0:00:03]} 26. Bxf3 {[%emt 0:00:46] Black must now prevent Bb2.} Qe1+ {[%emt 0:04:51]} 27. Kh2 {[%emt 0:00:22][%cal Oc2g6] Qg6! would now be deadly.} Nxg3 $1 {[%emt 0:01:22]} 28. fxg3 {[%emt 0:03:54]} Qxc3 {[%emt 0:00:11]} 29. Qe2 $36 {[%emt 0:00:50][%mdl 2048] Hoping for Bb2. White is pushing.} Qf6 {[%emt 0:04:54]} (29... Rxb3 $11 30. Qe8+ Bf8 31. Qxc8 Qxf3 32. Qe6+ Kh7 33. Qf5+ Kg8 34. Qg6+ Bg7) 30. Bb2 {[%emt 0:02:33]} Qf8 {[%emt 0:00:00][%mdl 8192] Loses the game.} (30... Qf5 $16) 31. Bxg7 $18 {[%emt 0:00:27]} Kxg7 {[%emt 0:00:02]} 32. Bg4 {[%emt 0:02:02]} Bb7 {[%emt 0:03:05]} 33. Be6 {[%emt 0:00:53] Black is weak on the light squares} Qf6 {[%emt 0:00:15]} 34. h5 {[%emt 0:01:31]} Kh8 {[%emt 0:02:17]} 35. Qg4 {[%emt 0:03:21]} Rf8 {[%emt 0:00:05]} 36. Re2 {[%emt 0:01:49][%cal Ba2e2,Be2c2,Bc2c4][%mdl 32]} Re8 {[%emt 0:00:10]} 37. Kh3 {[%emt 0:01:44]} Qf8 $2 {[%emt 0:02:47]} (37... a5 38. Ra2 Ba6) 38. Rc2 {[%emt 0:06:18] White is clearly winning.} Qf6 {[%emt 0:04:44] [#]} (38... a5 $142 39. f5 Ba6) 39. b4 $1 {[%emt 0:02:52][%mdl 512]} c4 {[%emt 0:04:34]} (39... Qg7 40. bxc5) 40. Qg6 {[%emt 0:03:44]} Qxg6 {[%emt 0:00:05]} 41. hxg6 {[%emt 0:00:01]} Bc8 {[%emt 0:00:00]} 42. Rxc4 {[%emt 0:00:36]} Bxe6+ {[%emt 0:00:04]} 43. dxe6 {[%emt 0:00:06]} Rxe6 {[%emt 0:00:02]} 44. f5 {[%emt 0:23:09]} Rf6 {[%emt 0:16:28] Weighted Error Value: White=0.28 (precise) /Black=0.46.  Loses game:     	---       	Black=1      Mistake:       	White=1     	Black=4      Inaccurate:     	White=3     	Black=2      OK:         	White=7     	Black=9      Best:        	White=6     	Black=1      Strong:       	---       	Black=1} 1-0